bitfinex-derivatives/quotes_SOLF0:USTF0_20250312
["timestamp","ask_amount","ask_price","bid_price","bid_amount"]
[1741745541530,4.1046,125.57,125.53,7.9671]
[1741745542035,0.05129132,125.56,125.54,0.05197226]
[1741745545929,16.65912757,125.55,125.49,31.9]
[1741745546134,18.73262757,125.55,125.49,31.9]
[1741745546334,7.9673,125.54,125.5,7.9691]
[1741745547034,0.05267819,125.53,125.51,0.05448999]
[1741745548240,8.02027819,125.53,125.51,0.05448999]
[1741745549043,0.05267819,125.53,125.51,0.05448999]
[1741745549935,0.05267819,125.53,125.51,31.93448999]
[1741745551038,0.05267819,125.53,125.52,7.9682]
[1741745556846,0.05267819,125.53,125.51,31.93448999]
[1741745557040,0.05267819,125.53,125.51,39.90308999]
[1741745557243,0.05267819,125.53,125.51,31.93448999]
[1741745557740,0.05267819,125.53,125.52,7.9682]
[1741745559445,7.819e-05,125.53,125.52,7.9682]
[1741745559645,2.176,125.59,125.57,7.9646]
[1741745560350,2.176,125.59,125.56,7.9654]
[1741745560747,2.23307239,125.59,125.56,8.0239543]
[1741745561146,2.23307239,125.59,125.56,0.0585543]
[1741745561346,2.23307239,125.59,125.56,8.0239543]
[1741745561947,7.9645,125.58,125.56,0.0585543]
[1741745563052,26.85619996,125.59,125.56,0.0585543]
[1741745563247,2.23307239,125.59,125.56,0.0585543]
[1741745564254,2.23307239,125.59,125.56,8.0237543]
[1741745564751,2.23307239,125.59,125.57,7.9647]
[1741745565147,0.05707239,125.59,125.56,0.0585543]
[1741745566450,0.05707239,125.59,125.57,7.9651]
[1741745567255,0.05707239,125.59,125.56,0.0585543]
[1741745567455,0.05707239,125.59,125.58,7.9644]
[1741745571749,16.65912757,125.67,125.58,31.86]
[1741745571946,4.1703,125.67,125.62,16.65912757]
[1741745572253,4.1703,125.67,125.63,31.86]
[1741745572452,4.1703,125.67,125.64,7.9603]
[1741745572649,4.1703,125.67,125.63,31.86]
[1741745572857,16.65912757,125.72,125.66,7.9592]
[1741745573151,0.05290885,125.7,125.66,31.86]
[1741745573358,0.05290885,125.7,125.68,0.05340916]
[1741745573657,7.9575,125.69,125.68,0.05340916]
[1741745573853,16.71203642,125.7,125.66,31.86]
[1741745574254,0.05290885,125.7,125.66,31.86]
[1741745574650,0.05290885,125.7,125.66,39.8191]
[1741745575055,0.05290885,125.7,125.67,0.05451791]
[1741745575852,7.9575,125.69,125.67,0.05451791]
[1741745576154,16.71203642,125.7,125.67,0.05451791]
[1741745576359,7.9581,125.69,125.67,0.05451791]
[1741745576854,16.71203642,125.7,125.62,7.9618]
[1741745577059,16.65912757,125.68,125.61,270.72]
[1741745577261,2.0161,125.67,125.61,270.72]
[1741745577559,7.96,125.65,125.61,270.72]
[1741745577957,2.0161,125.67,125.61,270.72]
[1741745578153,0.0564174,125.64,125.62,0.05030436]
[1741745579064,16.71554497,125.64,125.56,21.07515771]
[1741745579357,16.65912757,125.64,125.56,21.07515771]
[1741745579554,16.65912757,125.64,125.57,7.965]
[1741745579758,33.9543,125.66,125.56,21.07515771]
[1741745579759,16.65912757,125.62,125.56,21.07515771]
[1741745580158,7.9636,125.6,125.56,21.07515771]
[1741745580358,8.01437802,125.6,125.58,0.05758084]
[1741745580859,0.05077802,125.6,125.58,0.05758084]
[1741745581456,7.9638,125.59,125.58,0.05758084]
[1741745581760,2.1143,125.59,125.53,238.82]
[1741745582058,7.9662,125.56,125.53,238.82]
[1741745582256,2.1219,125.61,125.54,16.65912757]
[1741745582471,2.1219,125.61,125.56,16.65912757]
[1741745582659,2.1219,125.61,125.56,48.49912757]
[1741745582858,0.05135697,125.6,125.57,0.05044939]
[1741745583956,0.05135697,125.6,125.58,7.964]
[1741745584357,0.05135697,125.6,125.57,0.05044939]
[1741745585362,0.05135697,125.6,125.58,31.84]
[1741745585763,0.05135697,125.6,125.59,7.9638]
[1741745586667,5.697e-05,125.6,125.59,7.9638]
[1741745588270,2.1811,125.65,125.58,58.45969417]
[1741745588569,2.068,125.67,125.64,7.9606]
[1741745588969,2.068,125.67,125.63,7.961]
[1741745589462,0.05330447,125.66,125.64,0.05748384]
[1741745589665,0.05330447,125.66,125.64,8.01788384]
[1741745589866,0.05330447,125.66,125.64,0.05748384]
[1741745590763,0.05330447,125.66,125.56,26.61969417]
[1741745590968,7.9602,125.65,125.57,31.84]
[1741745591366,31.84,125.66,125.57,31.84]
[1741745591967,0.05197085,125.63,125.6,0.05468914]
[1741745592571,0.05197085,125.63,125.61,7.9621]
[1741745593262,0.05197085,125.63,125.6,8.01768914]
[1741745593768,0.05197085,125.63,125.6,0.05468914]
[1741745593973,8.01337085,125.63,125.6,0.05468914]
[1741745594171,2.1321,125.62,125.6,0.05468914]
[1741745594771,2.1321,125.62,125.6,8.01758914]
[1741745594968,2.1321,125.62,125.6,0.05468914]
[1741745595772,2.1321,125.62,125.6,8.01748914]
[1741745596775,2.1321,125.62,125.6,0.05468914]
[1741745597577,0.05197085,125.63,125.6,0.05468914]
[1741745598074,0.05197085,125.63,125.62,7.9619]
[1741745598278,0.05197085,125.63,125.62,39.8019]
[1741745602875,0.05197085,125.63,125.62,31.84]
[1741745604881,0.05197085,125.63,125.62,39.8019]
[1741745609486,192.0,125.69,125.62,48.47090805]
[1741745609686,2.0892,125.71,125.68,7.9575]
[1741745610584,2.14006619,125.71,125.68,7.9575]
[1741745610789,2.14006619,125.71,125.68,0.05517126]
[1741745610991,2.14006619,125.71,125.69,7.9573]
[1741745611394,2.14006619,125.71,125.68,0.05517126]
[1741745612192,2.14006619,125.71,125.64,16.63090805]
[1741745612389,2.0892,125.71,125.64,16.63090805]
[1741745612692,7.9578,125.69,125.64,16.63090805]
[1741745612892,33.9092,125.71,125.64,16.63090805]
[1741745613295,33.9092,125.71,125.64,7.9604]
[1741745613494,0.0533,125.69,125.66,0.05050114]
[1741745614389,16.63090805,125.68,125.61,88.72124049]
[1741745614593,18.76600805,125.68,125.61,88.72124049]
[1741745614988,7.9594,125.66,125.62,7.9615]
[1741745615192,7.9594,125.66,125.61,88.72124049]
[1741745615494,8.01657818,125.65,125.62,0.05573874]
[1741745618097,7.9607,125.64,125.62,0.05573874]
[1741745618297,0.05607818,125.65,125.62,0.05573874]
[1741745618495,16.68698623,125.65,125.62,0.05573874]
[1741745618798,2.0767,125.64,125.57,31.82]
[1741745618988,7.9616,125.63,125.57,31.82]
[1741745619192,7.9616,125.63,125.59,7.9636]
[1741745619396,2.0767,125.64,125.57,31.82]
[1741745619598,7.9623,125.62,125.58,7.9639]
[1741745619793,2.0767,125.64,125.57,31.82]
[1741745619996,0.05611944,125.61,125.59,0.05986007]
[1741745620199,8.01911944,125.61,125.59,0.05986007]
[1741745620393,0.05611944,125.61,125.59,0.05986007]
[1741745620590,7.9632,125.6,125.59,0.05986007]
[1741745620789,16.68702749,125.61,125.56,274.06783038]
[1741745621100,16.68702749,125.61,125.55,238.84]
[1741745621300,7.9632,125.6,125.55,246.8059]
[1741745621599,0.05611944,125.61,125.55,255.47090805]
[1741745621797,0.05611944,125.61,125.57,7.965]
[1741745621999,0.05611944,125.61,125.57,0.05435483]
[1741745623193,0.05611944,125.61,125.57,8.01905483]
[1741745623495,0.05611944,125.61,125.57,0.05435483]
[1741745623902,0.05611944,125.61,125.57,48.50526288]
[1741745624905,0.05611944,125.61,125.6,7.9632]
[1741745628204,0.05611944,125.61,125.59,16.63090805]
[1741745629111,0.05611944,125.61,125.6,7.9632]
[1741745629311,0.05611944,125.61,125.6,39.7832]
[1741745630309,1.944e-05,125.61,125.6,39.7832]
[1741745630702,4.1964,125.67,125.6,31.82]
[1741745630908,4.1964,125.67,125.65,7.96]
[1741745631706,4.1964,125.67,125.61,16.63090805]
[1741745631904,4.25223967,125.67,125.65,0.0563318]
[1741745632411,12.21093967,125.67,125.65,0.0563318]
[1741745632612,4.25223967,125.67,125.65,0.0563318]
[1741745633906,7.9604,125.65,125.61,7.9622]
[1741745634111,48.45090805,125.66,125.6,31.82]
[1741745634317,31.82,125.66,125.6,31.82]
[1741745634912,0.05323742,125.64,125.62,0.05591565]
[1741745635908,0.05323742,125.64,125.63,7.9613]
[1741745644512,4.0947,125.71,125.68,7.9581]
[1741745645217,4.0947,125.71,125.67,7.9585]
[1741745645509,7.957,125.7,125.65,16.63090805]
[1741745645715,0.05860827,125.7,125.68,0.05442996]
[1741745646518,0.05860827,125.7,125.68,8.01252996]
[1741745647015,0.05860827,125.7,125.68,0.05442996]
[1741745648112,0.05860827,125.7,125.69,7.9575]
[1741745650018,0.05860827,125.7,125.69,24.58840805]
[1741745650419,0.05860827,125.7,125.69,56.38840805]
[1741745653020,0.05860827,125.7,125.69,24.58840805]
[1741745653228,0.05860827,125.7,125.68,0.05442996]
[1741745654128,7.9575,125.69,125.68,0.05442996]
[1741745654330,2.07700827,125.7,125.63,270.54]
[1741745654331,18.70791632,125.7,125.63,270.54]
[1741745654529,4.105,125.69,125.63,31.78]
[1741745655226,7.9599,125.66,125.61,16.63090805]
[1741745655427,7.9599,125.66,125.65,0.05116143]
[1741745657331,7.9613,125.63,125.6,31.78]
[1741745657531,16.63090805,125.66,125.59,31.78]
[1741745658535,7.9623,125.62,125.61,0.0517686]
[1741745659127,0.05650249,125.64,125.61,0.0517686]
[1741745659929,0.05650249,125.64,125.62,31.8]
[1741745662129,8.01760249,125.64,125.62,31.8]
[1741745662431,0.05650249,125.64,125.62,31.8]
[1741745662829,8.01750249,125.64,125.62,31.8]
[1741745663334,0.05650249,125.64,125.62,31.8]
[1741745664830,0.05650249,125.64,125.62,48.43090805]
[1741745665024,0.05650249,125.64,125.62,56.39250805]
[1741745665223,0.05650249,125.64,125.61,0.0517686]
[1741745665625,7.9617,125.63,125.61,0.0517686]
[1741745666031,0.05650249,125.64,125.61,0.0517686]
[1741745666229,7.9619,125.62,125.61,0.0517686]
[1741745666431,0.05650249,125.64,125.61,0.0517686]
[1741745666830,7.9619,125.62,125.61,0.0517686]
[1741745667031,48.46741054,125.64,125.55,120.50124049]
[1741745667232,4.2174,125.63,125.55,120.50124049]
[1741745667432,7.9629,125.61,125.56,7.9657]
[1741745668036,7.9635,125.6,125.55,128.46734049]
[1741745668234,8.02436336,125.6,125.57,0.05138642]
[1741745668635,0.06086336,125.6,125.57,0.05138642]
[1741745670233,16.69177141,125.6,125.57,0.05138642]
[1741745670633,16.69177141,125.6,125.53,21.13130192]
[1741745670833,16.69177141,125.6,125.53,31.78]
[1741745671637,0.06086336,125.6,125.53,31.78]
[1741745671840,0.06086336,125.6,125.55,0.06084598]
[1741745672034,0.06086336,125.6,125.55,8.02674598]
[1741745672442,8.02406336,125.6,125.55,0.06084598]
[1741745673237,0.06086336,125.6,125.55,0.06084598]
[1741745673542,16.69177141,125.6,125.55,0.06084598]
[1741745673838,7.9644,125.58,125.55,0.06084598]
[1741745674042,16.69177141,125.6,125.55,0.06084598]
[1741745674842,16.69177141,125.6,125.55,8.02714598]
[1741745675148,24.65517141,125.6,125.55,8.02714598]
[1741745676042,24.65517141,125.6,125.56,7.9657]
[1741745676245,16.69177141,125.6,125.56,7.9657]
[1741745676443,0.06086336,125.6,125.56,7.9657]
[1741745677340,8.02406336,125.6,125.56,7.9657]
[1741745677635,16.69177141,125.6,125.55,0.06084598]
[1741745677840,7.9657,125.56,125.55,0.06084598]
[1741745678140,16.63090805,125.58,125.55,0.06084598]
[1741745678342,0.05084379,125.57,125.55,0.06084598]
[1741745678542,8.01624379,125.57,125.55,0.06084598]
[1741745679143,0.05084379,125.57,125.56,7.9657]
[1741745680443,2.0803,125.62,125.55,16.69175403]
[1741745680645,4.2174,125.63,125.55,18.74745403]
[1741745680845,4.2174,125.63,125.55,18.68660805]
[1741745681044,12.1792,125.63,125.58,7.964]
[1741745681244,4.2174,125.63,125.58,7.964]
[1741745681544,4.2174,125.63,125.57,31.8]
[1741745681744,0.05323079,125.62,125.59,8.02188374]
[1741745681942,0.05323079,125.62,125.59,0.05858374]
[1741745682845,0.05323079,125.62,125.59,8.02238374]
[1741745684547,0.05323079,125.62,125.59,0.05858374]
[1741745684747,8.01573079,125.62,125.59,0.05858374]
[1741745685148,0.05323079,125.62,125.59,0.05858374]
[1741745685646,16.63090805,125.6,125.52,31.8]
[1741745686848,0.0603906,125.57,125.56,7.9657]
[1741745687048,2.1437,125.61,125.55,0.05502673]
[1741745687244,0.05076392,125.57,125.55,0.05502673]
[1741745687641,0.05076392,125.57,125.56,7.9657]
[1741745687845,4.2174,125.63,125.55,48.46593478]
[1741745688048,35.9974,125.63,125.55,48.41090805]
[1741745688243,2.1448,125.63,125.57,16.63090805]
[1741745688449,31.78,125.65,125.59,16.63090805]
[1741745688650,7.959,125.67,125.59,16.63090805]
[1741745688844,31.78,125.66,125.59,16.63090805]
[1741745689045,0.05868159,125.64,125.62,0.0533917]
[1741745689852,0.05868159,125.64,125.63,7.9613]
[1741745693551,0.05868159,125.64,125.62,0.0533917]
[1741745694253,0.05868159,125.64,125.62,8.0150917]
[1741745694947,0.05868159,125.64,125.62,0.0533917]
[1741745695548,8.01988159,125.64,125.62,0.0533917]
[1741745696152,7.9613,125.63,125.62,0.0533917]
[1741745698054,7.9626,125.61,125.56,50.47340805]
[1741745698250,18.74220805,125.64,125.56,50.47340805]
[1741745698554,18.74220805,125.64,125.56,48.41090805]
[1741745698753,7.9623,125.62,125.56,48.41090805]
[1741745698956,39.7423,125.62,125.56,48.41090805]
[1741745699348,0.05726011,125.6,125.59,7.9634]
[1741745700453,16.68816816,125.6,125.53,88.72124049]
[1741745700653,31.78,125.59,125.53,88.72124049]
[1741745701253,33.8027,125.61,125.54,16.63090805]
[1741745701454,33.8027,125.61,125.55,31.78]
[1741745701654,0.05625081,125.59,125.56,0.05556289]
[1741745702759,0.05625081,125.59,125.56,8.02116289]
[1741745703156,0.05625081,125.59,125.56,0.05556289]
[1741745703458,0.05625081,125.59,125.58,7.9644]
[1741745703861,2.1935,125.66,125.58,48.41090805]
[1741745704248,18.82440805,125.66,125.58,48.41090805]
[1741745705058,0.05371933,125.63,125.61,0.05248715]
[1741745706359,0.05371933,125.63,125.61,8.01458715]
[1741745706559,0.05371933,125.63,125.61,0.05248715]
[1741745706858,0.05371933,125.63,125.62,7.9619]
[1741745707256,0.05371933,125.63,125.62,24.59280805]
[1741745709065,0.05371933,125.63,125.61,0.05248715]
[1741745711157,16.68462738,125.63,125.55,2.0843]
[1741745711363,33.8688,125.62,125.55,7.9662]
[1741745711660,16.63090805,125.59,125.54,109.85233123]
[1741745711866,33.8759,125.58,125.54,109.85233123]
[1741745712166,7.9652,125.57,125.54,109.85233123]
[1741745712371,8.02221566,125.57,125.55,0.05079138]
[1741745712865,24.65312371,125.57,125.55,0.05079138]
[1741745713060,2.1812,125.56,125.55,0.05079138]
[1741745713265,0.05701566,125.57,125.55,0.05079138]
[1741745713661,16.68792371,125.57,125.55,0.05079138]
[1741745714769,24.65302371,125.57,125.55,0.05079138]
[1741745715373,16.68792371,125.57,125.55,0.05079138]
[1741745715562,16.68792371,125.57,125.47,122.58554049]
[1741745715563,16.63090805,125.55,125.47,122.58554049]
[1741745715873,2.0991,125.54,125.47,122.58554049]
[1741745716262,16.63090805,125.53,125.47,120.50124049]
[1741745716574,0.0605731,125.51,125.47,120.50124049]
[1741745716765,0.0605731,125.51,125.47,88.72124049]
[1741745716971,16.69148115,125.51,125.47,88.72124049]
[1741745718074,16.69148115,125.51,125.47,96.69244049]
[1741745718274,16.69148115,125.51,125.47,88.72124049]
[1741745718572,16.69148115,125.51,125.47,7.971]
[1741745718964,16.69148115,125.51,125.44,33.9116]
[1741745719567,16.69148115,125.51,125.44,2.1316]
[1741745719769,16.63090805,125.49,125.42,327.58124049]
[1741745720173,0.05199593,125.47,125.42,327.58124049]
[1741745720470,0.05199593,125.47,125.46,7.9719]
[1741745721274,0.05199593,125.47,125.42,238.86]
[1741745721881,24.65430398,125.47,125.39,107.52624854]
[1741745722178,24.60230805,125.47,125.39,122.67534049]
[1741745722473,0.0577317,125.44,125.39,88.72124049]
[1741745722678,0.0577317,125.44,125.39,120.50124049]
[1741745723480,0.0577317,125.44,125.43,7.974]
[1741745723977,0.0577317,125.44,125.39,31.78]
[1741745724181,0.0577317,125.44,125.41,7.9747]
[1741745724377,16.63090805,125.43,125.36,272.9016]
[1741745724682,2.1027,125.44,125.41,7.9748]
[1741745725077,2.16373529,125.44,125.41,7.9748]
[1741745725278,2.16373529,125.44,125.37,16.63090805]
[1741745725483,2.1027,125.44,125.37,16.63090805]
[1741745725779,0.05079886,125.42,125.37,16.63090805]
[1741745725988,0.05079886,125.42,125.41,7.9752]
[1741745727179,0.05079886,125.42,125.36,272.9016]
[1741745727379,0.05079886,125.42,125.39,16.63090805]
[1741745727580,0.05079886,125.42,125.41,7.9752]
[1741745728383,2.1217,125.5,125.47,7.9714]
[1741745728577,2.1217,125.5,125.44,16.63090805]
[1741745729186,2.0454,125.52,125.44,16.63090805]
[1741745729389,2.0454,125.52,125.46,16.63090805]
[1741745729586,0.05351792,125.49,125.48,7.9702]
[1741745731592,31.8,125.56,125.52,7.9682]
[1741745731783,2.0842,125.56,125.49,31.8]
[1741745732188,2.0842,125.56,125.53,7.9676]
[1741745732589,2.0842,125.56,125.51,7.9684]
[1741745732886,2.13620076,125.56,125.53,0.05101989]
[1741745733094,2.13620076,125.56,125.54,7.9669]
[1741745733289,0.05200076,125.56,125.54,7.9669]
[1741745733888,0.05200076,125.56,125.55,7.9663]
[1741745734195,0.05200076,125.56,125.53,0.05101989]
[1741745734693,0.05200076,125.56,125.53,8.01821989]
[1741745734988,0.05200076,125.56,125.53,0.05101989]
[1741745735189,0.05200076,125.56,125.53,26.69261359]
[1741745735590,0.05200076,125.56,125.53,0.05101989]
[1741745735792,0.05200076,125.56,125.53,8.01841989]
[1741745737289,0.05200076,125.56,125.53,26.69261359]
[1741745737992,0.05200076,125.56,125.54,7.967]
[1741745738194,0.05200076,125.56,125.53,0.05101989]
[1741745739086,0.05200076,125.56,125.55,7.9663]
[1741745739394,0.05200076,125.56,125.55,39.7463]
[1741745739987,0.05200076,125.56,125.55,31.78]
[1741745741394,0.05200076,125.56,125.53,0.05101989]
[1741745741796,0.05200076,125.56,125.53,8.01811989]
[1741745742094,0.05200076,125.56,125.53,0.05101989]
[1741745742684,0.05200076,125.56,125.55,7.9663]
[1741745742885,0.05200076,125.56,125.53,0.05101989]
[1741745743299,0.05200076,125.56,125.53,8.01861989]
[1741745743695,0.05200076,125.56,125.53,0.05101989]
[1741745743895,0.05200076,125.56,125.55,7.9663]
[1741745744693,0.05200076,125.56,125.53,0.05101989]
[1741745745597,0.05200076,125.56,125.55,7.9663]
[1741745745792,218.6415937,125.64,125.54,31.78]
[1741745745999,270.82,125.65,125.54,31.78]
[1741745746197,7.9619,125.62,125.54,31.78]
[1741745746691,270.82,125.65,125.58,7.964]
[1741745746891,239.04,125.65,125.57,31.78]
[1741745747089,0.05221433,125.62,125.59,0.05635635]
[1741745747287,33.8918,125.67,125.61,7.9624]
[1741745747499,0.05969933,125.62,125.61,7.9624]
[1741745747697,33.8918,125.67,125.61,7.9624]
[1741745747899,0.05296049,125.63,125.62,7.9619]
[1741745748291,41.8508,125.67,125.62,7.9618]
[1741745748497,0.05505871,125.64,125.62,7.9618]
[1741745748695,0.05505871,125.64,125.61,31.83381628]
[1741745749094,0.05505871,125.64,125.61,39.79591628]
[1741745749499,0.05505871,125.64,125.61,31.83381628]
[1741745750396,7.9613,125.63,125.61,31.83381628]
[1741745750600,0.05505871,125.64,125.61,31.83381628]
[1741745751403,0.05505871,125.64,125.61,0.05381628]
[1741745752294,58.45665241,125.64,125.61,0.05381628]
[1741745752495,7.9651,125.57,125.53,7.9674]
[1741745752696,26.6415937,125.6,125.5,166.52424017]
[1741745753198,7.9642,125.59,125.5,60.6048937]
[1741745753401,33.8899,125.61,125.5,60.6048937]
[1741745753604,0.05132223,125.56,125.53,8.0207831]
[1741745753801,0.05132223,125.56,125.53,31.76]
[1741745754101,0.05132223,125.56,125.55,7.9663]
[1741745755607,0.05132223,125.56,125.53,31.81179444]
[1741745755802,0.05132223,125.56,125.53,0.05179444]
[1741745756907,0.05132223,125.56,125.55,7.9663]
[1741745757298,0.05132223,125.56,125.55,39.7263]
[1741745758105,0.05132223,125.56,125.55,7.9663]
[1741745758410,0.05132223,125.56,125.53,0.05179444]
[1741745758805,0.05132223,125.56,125.54,7.9665]
[1741745759116,0.05132223,125.56,125.53,0.05179444]
[1741745759303,7.9664,125.55,125.53,0.05179444]
[1741745759500,0.05132223,125.56,125.53,0.05179444]
[1741745759707,2.1283,125.55,125.53,0.05179444]
[1741745759909,7.967,125.54,125.53,0.05179444]
[1741745760408,7.9688,125.52,125.47,7.971]
[1741745760708,62.7016937,125.55,125.46,238.88]
[1741745760914,62.7016937,125.55,125.46,270.64]
[1741745761498,7.9699,125.5,125.49,0.05449269]
[1741745761903,26.6415937,125.51,125.45,31.76]
[1741745762208,26.6415937,125.51,125.44,96.69414049]
[1741745762402,7.9708,125.48,125.44,88.72124049]
[1741745762611,26.6415937,125.51,125.44,88.72124049]
[1741745762906,34.6105937,125.51,125.44,88.72124049]
[1741745763102,0.05452832,125.49,125.44,88.72124049]
[1741745763298,0.05452832,125.49,125.43,31.76]
[1741745764904,0.05452832,125.49,125.45,7.9723]
[1741745765109,26.69612202,125.49,125.43,31.76]
[1741745765309,0.05452832,125.49,125.43,31.76]
[1741745766307,0.05452832,125.49,125.43,58.4015937]
[1741745766712,0.05452832,125.49,125.48,7.9708]
[1741745767015,0.05452832,125.49,125.48,39.7308]
[1741745768113,38.1962,125.55,125.52,7.9678]
[1741745768114,2.1283,125.55,125.52,7.9678]
[1741745768303,2.1283,125.55,125.52,31.78]
[1741745769014,2.1283,125.55,125.53,7.9672]
[1741745769212,2.18505554,125.55,125.53,7.9672]
[1741745769514,2.18505554,125.55,125.52,31.83072386]
[1741745770009,0.05675554,125.55,125.52,31.83072386]
[1741745770218,0.05675554,125.55,125.52,58.47231756]
[1741745771311,0.05675554,125.55,125.52,31.83072386]
[1741745772107,0.05675554,125.55,125.52,0.05072386]
[1741745772618,0.05675554,125.55,125.48,31.76]
[1741745772813,31.81675554,125.55,125.48,39.7304]
[1741745773015,7.9671,125.54,125.48,31.76]
[1741745773212,10.0612,125.54,125.48,31.76]
[1741745773512,2.0941,125.54,125.48,31.76]
[1741745773718,0.05887226,125.52,125.48,58.4015937]
[1741745773919,227.8818,125.59,125.48,58.4015937]
[1741745773920,2.0941,125.58,125.48,58.4015937]
[1741745774113,2.0941,125.58,125.5,26.6415937]
[1741745774314,2.0941,125.58,125.51,31.76]
[1741745774514,2.0941,125.58,125.51,33.8738]
[1741745774817,2.0941,125.58,125.55,7.9659]
[1741745775019,2.0941,125.58,125.51,33.8738]
[1741745775217,2.0941,125.58,125.57,7.9651]
[1741745775422,31.76,125.63,125.54,31.76]
[1741745775613,0.06037161,125.59,125.54,31.76]
[1741745775813,0.06037161,125.59,125.58,7.9644]
[1741745776121,0.06037161,125.59,125.57,0.05914354]
[1741745776525,0.06037161,125.59,125.51,33.8738]
[1741745777021,31.76,125.6,125.51,33.8738]
[1741745777615,0.05121887,125.57,125.51,33.8738]
[1741745778122,8.01631887,125.57,125.53,7.9672]
[1741745778321,0.05121887,125.57,125.51,31.76]
[1741745778515,7.9659,125.56,125.51,7.9684]
[1741745778721,10.1167,125.56,125.5,31.76]
[1741745778909,2.1508,125.56,125.5,31.76]
[1741745779110,0.05251927,125.54,125.52,7.9678]
[1741745780221,0.05251927,125.54,125.53,7.9676]
[1741745780811,0.05251927,125.54,125.52,7.968]
[1741745781010,0.05251927,125.54,125.5,31.76]
[1741745782019,0.05251927,125.54,125.51,7.9685]
[1741745782318,0.05251927,125.54,125.48,2.038]
[1741745782524,0.05251927,125.54,125.46,31.76]
[1741745782724,0.05251927,125.54,125.44,0.6104]
[1741745782725,26.6415937,125.53,125.44,31.76]
[1741745782924,0.05865279,125.51,125.44,31.76]
[1741745783125,8.02795279,125.51,125.46,7.972]
[1741745783422,0.05865279,125.51,125.44,31.76]
[1741745783727,0.05865279,125.51,125.42,320.22814576]
[1741745783728,7.9715,125.47,125.42,615.60157257]
[1741745783922,2.1121,125.5,125.42,471.93450132]
[1741745784117,8.0218937,125.48,125.43,96.69474049]
[1741745784318,0.0506937,125.48,125.43,96.69474049]
[1741745784618,0.0506937,125.48,125.43,88.72124049]
[1741745785826,7.9718,125.47,125.43,88.72124049]
[1741745786125,0.0506937,125.48,125.43,88.72124049]
[1741745786327,31.8106937,125.48,125.41,270.72]
[1741745786529,7.972,125.47,125.42,7.9741]
[1741745786926,31.8106937,125.48,125.41,270.72]
[1741745787123,39.7815937,125.48,125.41,270.72]
[1741745787321,31.76,125.48,125.41,270.72]
[1741745787522,0.0568859,125.46,125.41,270.72]
[1741745788226,0.0568859,125.46,125.44,7.9729]
[1741745788426,0.0568859,125.46,125.41,270.72]
[1741745788626,0.0568859,125.46,125.42,31.78]
[1741745789325,0.0568859,125.46,125.43,7.9738]
[1741745789833,0.0568859,125.46,125.42,31.78]
[1741745790029,0.0568859,125.46,125.43,7.9735]
[1741745790233,0.0568859,125.46,125.42,31.78]
[1741745790425,8.0294859,125.46,125.42,39.7544]
[1741745790733,0.0568859,125.46,125.39,31.78]
[1741745791025,58.4215937,125.48,125.37,0.6116]
[1741745791231,0.05481188,125.44,125.39,31.78]
[1741745791630,7.974,125.43,125.39,7.9764]
[1741745791830,0.05481188,125.44,125.39,31.78]
[1741745792332,0.05481188,125.44,125.4,7.9756]
[1741745792727,26.69640558,125.44,125.35,327.80124049]
[1741745793039,26.6415937,125.42,125.32,88.72124049]
[1741745793333,7.9762,125.4,125.35,7.9786]
[1741745793730,0.05816589,125.39,125.33,31.78]
[1741745794229,0.05816589,125.39,125.32,88.72124049]
[1741745794430,58.4215937,125.38,125.32,88.72124049]
[1741745794631,6.231,125.37,125.32,88.72124049]
[1741745795128,0.05948341,125.36,125.32,96.70174049]
[1741745795835,0.05948341,125.36,125.33,7.9801]
[1741745796229,0.05948341,125.36,125.29,270.86]
[1741745797536,8.03828341,125.36,125.32,7.9809]
[1741745798434,8.03828341,125.36,125.29,270.88]
[1741745798634,0.05948341,125.36,125.29,270.88]
[1741745799133,0.05948341,125.36,125.33,7.9801]
[1741745800436,0.05948341,125.36,125.31,7.9815]
[1741745800633,31.8,125.35,125.27,2.1705]
[1741745800836,26.6415937,125.32,125.23,271.06]
[1741745801036,7.9828,125.3,125.25,7.9852]
[1741745801330,31.8,125.29,125.21,88.72124049]
[1741745801641,7.9837,125.28,125.2,74.82133434]
[1741745802033,0.05296271,125.25,125.2,74.82133434]
[1741745802241,0.05296271,125.25,125.24,7.9856]
[1741745802536,0.05296271,125.25,125.2,41.99373434]
[1741745802739,0.05296271,125.25,125.21,7.9875]